Cogmind - Beta 15 @@@ ROGUE MODE // 2025.05.08 @ 14:43:12 Player: GiggleBox Result: Destroyed by D-53 Grenadier with Mini Grenade Launcher Performance ------------- Evolutions (0) 0 Regions Visited (0) 0 Robots Destroyed (4) 20 Value Destroyed (27) 27 Prototype IDs (0) 0 Alien Tech Used (0) 0 Bonus (0) 0 TOTAL SCORE: 47 Bonus ------- None Cogmind --------- Core Integrity 0/250 Matter 300/300 Energy 98/100 System Corruption 0% Temperature Cool (1) Movement Core (100) Ox1 Location -11/Scrapyard Parts ------- > --- POWER (1) -------- (None) > --- PROPULSION (2) --- (None) > --- UTILITY (2) ------ Small Storage Unit Improved Terrain Scanner > --- WEAPON (2) ------- (None) > --- INVENTORY (8) ---- Seismic Detector Peak State ------------ > --- POWER ------------ Ion Engine > --- PROPULSION ------- Light Treads Light Treads > --- UTILITY ---------- Small Storage Unit Improved Terrain Scanner > --- WEAPON ----------- EM Pulse Gun Light Assault Rifle > --- INVENTORY -------- Seismic Detector Small Laser [Rating: 9] Favorites ----------- Power Ion Engine Engine Ion Engine Propulsion Light Treads Treads Light Treads Utility Small Storage Unit Device Improved Terrain Scanner Storage Small Storage Unit Weapon EM Pulse Gun Energy Gun EM Pulse Gun Ballistic Gun Light Assault Rifle Build | -11 ------- Run | Yrd Slots Evolved . | . Power . | . Propulsion . | . Utility . | . Weapon . | . Parts Attached 8 | 8 Power 1 | 1 Engine 1 | 1 Core . | . Reactor . | . Propulsion 2 | 2 Treads 2 | 2 Leg . | . Wheel . | . Hover . | . Flight . | . Utility 2 | 2 Device 1 | 1 Storage 1 | 1 Processor . | . Hackware . | . Protection . | . Artifact . | . Weapon 3 | 3 Energy Gun 2 | 2 Energy Cannon . | . Ballistic Gun 1 | 1 Ballistic Cannon . | . Launcher . | . Special Weapon . | . Impact Weapon . | . Slashing Weapon . | . Piercing Weapon . | . Special Melee Weapon . | . Unidentified Prototypes . | . Parts Lost 6 | 6 Power 1 | 1 Propulsion 2 | 2 Utility . | . Weapon 3 | 3 Highest Loss Streak 6 | 6 To Critical Strikes . | . Average Backups 1 | 1 Power . | . Propulsion . | . Utility . | . Weapon . | . Tool/Special . | . Unused Backups 1 | 1 Power . | . Propulsion . | . Utility 1 | 1 Weapon . | . Tool/Special . | . Average Slot Usage (%) . | . Peak Build Rating 9 | 9 Average Rating 5 | 5 On Entrance . | . Naked Turns . | . Heaviest Build 14 | 14 Greatest Support 40 | 40 Greatest Overweight (x) 1 | 1 Average Overweight (x) . | . Largest Inventory Capacity 8 | 8 Average Capacity 7 | 7 Most Carried 3 | 3 Average Carried 1 | 1 Final Capacity 8 | 8 Final Carried 1 | 1 Class Distribution -------------------- None Dominant Class ---------------- None Resources | -11 ----------- Run | Yrd Matter Collected 288 | 288 Remotely . | . Salvage Created 176 | 176 Parts 9 | 9 Haulers Intercepted . | . Recyclers Shooed . | . Parts Field Recycled . | . Retrieved Matter . | . Parts Self-Destructed . | . Prevented . | . Kills | -11 ------- Run | Yrd Combat Hostiles Destroyed 2 | 2 Guns 2 | 2 Classes Destroyed 3 | 3 Tunneler 3 | 3 Recycler 1 | 1 Assembled 2 | 2 Best Kill Streak 1 | 1 Combat Bots Only 1 | 1 Max Kills in Single Turn 1 | 1 Gunslinging . | . Exploded . | . Melee . | . Uniques/NPCs Destroyed . | . Combat | -11 -------- Run | Yrd Hostile Shots Fired 20 | 20 Missed 1 | 1 Hits 19 | 19 Projectile 19 | 19 AOE 13 | 13 Critical Strikes 1 | 1 Damage Taken 879 | 879 Core 269 | 269 Absorbed by Shields . | . Core Remaining (%) . | . Volleys Fired 22 | 22 Largest 2 | 2 Hottest 60 | 60 Shots Fired 44 | 44 Gun 44 | 44 Cannon . | . Launcher . | . Special . | . Kinetic 22 | 22 Thermal 4 | 4 Explosive . | . Electromagnetic 18 | 18 Robot Hit Streak 5 | 5 Robot Miss Streak 3 | 3 Penetration Max . | . Secondary Targets . | . Shots Hit Robots 23 | 23 Core Hits 13 | 13 Critical Kills . | . Critical Parts Destroyed . | . Critical Strikes . | . Melee Attacks . | . Impact . | . Slashing . | . Piercing . | . Sneak Attacks . | . Combat Hostiles . | . Follow-up Attacks . | . Damage Inflicted 260 | 260 Guns 258 | 258 Cannons . | . Explosions . | . Melee . | . Ramming 2 | 2 Kinetic 64 | 64 Thermal 32 | 32 Explosive . | . Electromagnetic 162 | 162 Impact . | . Slashing . | . Piercing . | . Highest Corruption . | . Average Corruption . | . Corruption Purged . | . Corruption Blocked . | . Overload Shots . | . Overflow Damage . | . Projectiles . | . Explosions . | . Melee . | . Knockbacks . | . Impact . | . Kinetic . | . Secondary . | . Self-Inflicted Damage . | . Shots . | . Rammed 1 | 1 Targets Rammed 1 | 1 Kicked . | . Crushed . | . Highest Temperature 20 | 20 Average Temperature 12 | 12 Received Heat Transfer . | . Siege Activations . | . Martial Activations . | . Shielding Activations . | . Robots Disrupted . | . Combat Hostiles . | . Robots Corrupted . | . Combat Hostiles . | . Parts Fried 3 | 3 Impact Corruptions . | . Robots Melted . | . Combat Hostiles . | . Parts Melted . | . Heat Transferred 75 | 75 Parts Sabotaged . | . Parts Stolen . | . Parts Stripped . | . Power Chain Reactions . | . Alert | -11 ------- Run | Yrd Maximum Alert Level . | . Low Security (%) 100 | 100 Level 1 . | . Level 2 . | . Level 3 . | . Level 4 . | . Level 5 . | . High Security . | . Max Security . | . Peak Influence 11 | 11 Initial . | . Average . | . Influence Increases 20 | 20 Destroy 0b10 Robot/NC 20 | 20 Influence Decreases 20 | 20 Time Decay 20 | 20 Squads Dispatched . | . Investigation . | . Extermination . | . Reinforcement . | . Assault . | . Garrison . | . Intercept . | . Searches Triggered . | . Construction Impeded . | . Haulers Reinforced . | . Active Scanning Responses . | . Cargo Convoy Interrupts . | . Stealth | -11 --------- Run | Yrd Distress Signals . | . Communications Jammed . | . Distress Signals . | . Times Spotted 4 | 4 Peak Tracking Total 2 | 2 Tactical Retreats . | . Traps | -11 ------- Run | Yrd Traps Triggered . | . Indirectly . | . Trap Hack Attempts . | . Triggered . | . Disarmed . | . Reprogrammed . | . Reused . | . Traps Extracted . | . Installed . | . Triggered . | . Machines | -11 ---------- Run | Yrd Machines Disabled . | . Max in Single Turn . | . Machines Repaired . | . Machines Dismantled . | . Machines Sabotaged . | . Overloaded Fab Kills . | . Hacking | -11 --------- Run | Yrd Machines Accessed . | . Terminals . | . Fabricators . | . Repair Stations . | . Recycling Units . | . Scanalyzers . | . Garrison Access . | . Total Hacks . | . Successful . | . Failed . | . Catastrophic . | . Database Lockouts . | . Manual . | . Terminals . | . Fabricators . | . Repair Stations . | . Recycling Units . | . Scanalyzers . | . Garrison Access . | . Terminal Hacks . | . Fabricator Hacks . | . Repair Station Hacks . | . Recycling Unit Hacks . | . Scanalyzer . | . Garrison Access Hacks . | . Unauthorized Hacks . | . Terminals . | . Fabricators . | . Repair Stations . | . Recycling Units . | . Scanalyzers . | . Garrison Access . | . Data Cores Recovered . | . Used . | . Hacking Detections . | . Full Trace Events . | . Feedback Events . | . Feedback Blocked . | . Robot Schematics Acquired . | . Robots Built . | . Authchips . | . Time . | . Total Robot Build Rating . | . Part Schematics Acquired . | . Parts Built . | . Authchips . | . Time . | . Total Part Build Rating . | . Parts Repaired . | . Time . | . Parts Recycled . | . Recycled Matter . | . Retrieved Matter . | . Retrieved Components . | . Parts Scanalyzed . | . Part Schematics Acquired . | . Parts Damaged . | . Bothacking | -11 ------------ Run | Yrd Used RIF Installer . | . Robots Hacked . | . Non-combat . | . Combat . | . Robot Hacks Applied . | . Relay Couplers Released . | . Fabnet Peak Effective % . | . Robots Rewired . | . Allies Hacked . | . Hacks Repelled . | . Allies | -11 -------- Run | Yrd Total Allies . | . Largest Group . | . Highest-Rated Group . | . Highest-Rated Ally . | . Total Orders . | . Ally Attacks . | . Total Damage . | . Kills . | . Allies Corrupted . | . Allies Melted . | . Intel | -11 ------- Run | Yrd Active Infowar (turns) 274 | 274 Terrain 274 | 274 Robot Analysis Total . | . Derelict Logs Recovered . | . Drone Launches . | . Drone Recoveries . | . Exploration | -11 ------------- Run | Yrd Turns Passed 4301 | 4301 Spaces Moved 1422 | 1422 Core 5 | 5 Treads 1417 | 1417 Legs . | . Wheels . | . Hover . | . Flight . | . Fastest Speed 50 | 50 Average Speed 159 | 159 Slowest Speed 160 | 160 Overloaded Moves . | . Propulsion Burnouts . | . Robots Hopped . | . Potential Cave-ins 2 | 2 Cave-ins Triggered 1 | 1 Exploration Rate (%) 91 | 91 Regions Visited . Branch Regions . Pre-discovered Areas . | . Known Exits Taken . | . Unknown Exits Taken . | . Scrap Searched . | . Spaces Dug . | . Terrain Destroyed . | . Melee . | . Projectile . | . AOE . | . Terrain Rammed . | . Walls Destroyed . | . Machines Disabled . | . Actions | -11 --------- Run | Yrd Total 3409 | 3409 Wait 1952 | 1952 Move 1422 | 1422 Hop . | . Pick Up 3 | 3 Fast Attach 6 | 6 Attach 2 | 2 Detach . | . Swap 1 | 1 Drop . | . Fire 22 | 22 Melee . | . Ram . | . Kick . | . Crush 1 | 1 Escape Stasis . | . Rewire . | . Trap . | . Miscellaneous . | . Route ------- -11/Scrapyard (discovered 1 exit: [*Mat]) History --------- Turn | Location | Event 514 | -11/Scrapyard | Discovered new exit (range 15) 2660 | -11/Scrapyard | Assembled infested the area 4276 | -11/Scrapyard | Crushed by falling debris 4277 | -11/Scrapyard | Core integrity fell below 50% 4283 | -11/Scrapyard | Core integrity fell below 20% 4302 | -11/Scrapyard | Destroyed by D-53 Grenadier with Mini Grenade Launcher Last Messages --------------- 03033_ K-01 Serf collects debris. 03072_ Com. Wheel fried. 03072_ Tractor Beam fried. 03072_ R-06 Scavenger destroyed. 03072_ K-01 Serf collects debris. 03079_ Acquired 4 matter. 03087_ K-01 Serf collects debris. 03829_ T-07 Excavator is excavating. 04266_ EM Pulse Gun destroyed. 04272_ The unstable cave ceiling collapses. 04272_ Ion Engine destroyed. 04276_ The unstable cave ceiling collapses. 04276_ Crushed by falling debris. 04284_ Lgt. Assault Rifle destroyed. 04284_ Sml. Laser destroyed. 04285_ The unstable cave ceiling collapses. 04286_ Lgt. Treads destroyed. 04286_ D-53 Grenadier destroyed. 04287_ The unstable cave ceiling collapses. 04302_ Lgt. Treads destroyed. Map ----- +----------------------------------------------------+ | = =% ### | | ### ###### ### # ### | | ##### < # ## ###### # # | | #???# # ## #????# # | | #???########## ## #????# # # | | ################# ## #????############ | | # # ## ## #???????????????##### | | # # ## ## #???????????????????? | | # ########## #???????????????????? | | # # ########?# #???????????????????? | | # # # #?# #???????????????????? | | # # # #?######???????????????????? | | ######## # #?????????##???????????????? | | #??????# # #?????????###########??????? | | #??????# # #????????## #??????? | | #??????? ??# #????###### #??????? | | ########## ###### ## ####### # #??????? | | =%| = # ####???? | | *= % | #???? | | ############ ######## # # # #???? | | #??????# #??????# # # # #???? | | #??????# #??????# # #???? | | #??????# #??????# # ########## #???? | | #??????# ######## # ###?##???# ##?#? | | #??????# ## # ######### #???? | | #?????## ## @ d ##??? | | #?????# # #??? | | #?????# # #############??# | | #####?????# # #????????#?#??? | | ??????????# # # ##?##?????#???? | | ############ ## # ##????????????? | | # ## # ###???????#??## | | # ## ######### #?#??##?????? | | #????#??# # #?#?????????? | | # #####?#?# ###?????#??#??? | | # #???# #??#?????????#? | | ##########?# #### ###??###########???#????#?#??? | | ???????##### ##### #??#?#????????#?????????#????# | | ???????# #????##?????##?????#?#?????#?? | | ???????# ####???#??????#???#?????????##??? | | ???????# #???#?#???#?#???????????#???????? | | ???????# #????#???#????#????????#??#?#???? | | ???????# #???????##?#???#?????#??#???????? | | ???????# #????????#?#??#??#???????#??????? | | ???????# #?????##?#??????#?#??#?#??#?????? | | ???????# ##????????#?#???##?#?????##??????? | | ???????##########???????????????#????????????????? | | ?????????????????????????????#???#?????#?????????? | | ??????????????????????????????##????#????????????? | | ????????????????????????????????#????????????????? | +----------------------------------------------------+ Best States ------------- Heat Dissipation 25 Energy Generation 10 Energy Capacity 250 Matter Stores 300 Matter Capacity 300 Sight Range 16 Terrain Scan Range 16 Terrain Scan Density 10 Evasion (%) 40 Recoil Reduction 2 Item Schematics ----------------- None Robot Schematics ------------------ None Fabricated ------------ Nothing Repaired ---------- Nothing Alien Tech Used ----------------- None Achievements -------------- Curiosity Killed The Cat Challenges ------------ None Game ------ Seed ForceDirtyReconstructor Manual? 0 Play Time 00:12:20 Cumulative 76.5 hours Start 2025.05.08 @ 14:36:47 End 2025.05.08 @ 14:43:12 Sessions 0 Manual Loads 0 Difficulty Rogue Special Mode None Game No. 84 Rogue 84 Adventurer 0 Explorer 0 Win Type - Total 1 Types 1/0/0/0/0/0/0/0/0/0 Lore% 23 Gallery% 45 Achievement% 39 Wizard Run 0 Options --------- Layout 0 ASCII 0 Keyboard 1 Movement Numpad Keybinds 0 Fullscreen 1 Font 24/Terminus Map View 76x50 Zoom Use 0% Tactical HUD 1 Map Filters NONE Filters NONE Steam 1 RUN: b2cfdebc-ddc3-4187-8437-70adaee43873